fUSD/lending_fUSD_20250402
["ID","MTS","AMOUNT","RATE_DAILY","PERIOD"]
[357046361,1743629434218,-151.0,0.000249,7]
[357046362,1743629434227,-169.485123,0.000249,7]
[357046363,1743629434237,-169.485123,0.000249,7]
[357046364,1743629434247,-2112.353602,0.000249,7]
[357046365,1743629434256,-2112.353602,0.000249,7]
[357046366,1743629434266,-1624.97210168,0.00025,7]
[357046367,1743629434275,-110.05114015,0.000251,2]
[357046368,1743629434285,-200.0,0.000251,2]
[357046369,1743629434295,-153.18,0.00025279,2]
[357046370,1743629434304,-3052.79776808,0.00026,2]
[357046371,1743629434314,-150.0,0.00026027,2]
[357046372,1743629434323,-151.0,0.00026027,2]
[357046373,1743629434333,-151.53,0.00026057,2]
[357046374,1743629434343,-8456.28255034,0.00026067,2]
[357046375,1743629434366,-3483.55118777,0.00026067,2]
[357046376,1743629434385,-697.39347896,0.000264,2]
[357046377,1743629434406,-156.587,0.00026575,2]
[357046378,1743629434430,-244.20908259,0.00026616,2]
[357046379,1743629434447,-164.14,0.00026847,2]
[357046380,1743629434467,-278.23,0.00026849,2]
[357046381,1743629434491,-152.41,0.00026849,2]
[357046382,1743629434510,-273.21,0.00026849,2]
[357046383,1743629434533,-1689.91,0.00026908,2]
[357046384,1743629434552,-500.0,0.00026986,2]
[357046385,1743629434576,-250.0,0.00027,2]
[357046386,1743629434595,-994.62156315,0.00027,2]
[357046387,1743629434608,-250.0,0.00027,2]
[357046388,1743629434627,-1000.0,0.0002704,2]
[357046389,1743629434641,-162.380719,0.00027123,2]
[357046390,1743629434663,-150.0,0.00027397,2]
[357046391,1743629434677,-496.97,0.00027397,2]
[357046392,1743629434695,-151.0,0.00027397,7]
[357046393,1743629434712,-151.0,0.00027397,7]
[357046394,1743629434729,-151.0,0.00027397,7]
[357046395,1743629434748,-151.0,0.00027397,7]
[357046396,1743629434764,-1530.16,0.00027397,2]
[357046397,1743629434780,-150.0,0.00027397,5]
[357046398,1743629434795,-427.0,0.000274,2]
[357046399,1743629434810,-650.0,0.000274,2]
[357046400,1743629434824,-202.79929198,0.000275,2]
[357046401,1743629434841,-193.15997289,0.000275,2]
[357046402,1743629434856,-153.18,0.00027577,2]
[357046403,1743629434871,-168.3888056,0.00027671,2]
[357046404,1743629434885,-250.0,0.00027945,5]
[357046405,1743629434900,-200.0,0.000281,2]
[357046406,1743629434914,-267.6434754,0.00028219,2]
[357046407,1743629434928,-350.0,0.00028493,5]
[357046408,1743629434943,-150.0,0.00028767,2]
[357046409,1743629434958,-1530.16,0.00028767,2]
[357046410,1743629434974,-300.0,0.00029,2]
[357046411,1743629434988,-450.0,0.00029041,5]
[357046412,1743629435003,-164.14,0.00029062,2]
[357046413,1743629435019,-1689.91,0.00029172,2]
[357046414,1743629435034,-56055.0,0.000294,2]
[357046415,1743629435048,-646.39818554,0.00029589,5]
[357046416,1743629435063,-686.61713782,0.00029695,2]
[357046417,1743629435078,-8456.28255034,0.00029789,2]
[357046418,1743629435098,-3483.55118777,0.00029789,2]
[357046419,1743629435114,-150.0,0.0003,2]
[357046420,1743629435129,-506.62516583,0.0003,5]
[357046421,1743629435144,-2012.8669137,0.0003,2]
[357046422,1743629435159,-463.11570012,0.0003,2]
[357046423,1743629435174,-924.21355534,0.0003,15]
[357046424,1743629435189,-212.0,0.0003,2]
[357046425,1743629435308,-5554.0,0.000301,3]
[357046426,1743629435320,-150.0,0.00030136,2]
[357046427,1743629435329,-151.0,0.00030137,7]
[357046428,1743629435339,-153.600688,0.00030137,7]
[357046429,1743629435348,-1530.16,0.00030137,2]
[357046430,1743629435357,-1500.0,0.00030471,5]
[357046431,1743629435366,-1890.33316016,0.000306,2]
[357046432,1743629435376,-5554.0,0.000308,5]
[357046433,1743629435385,-200.0,0.00031,2]
[357046434,1743629435394,-350.0,0.00031,2]
[357046435,1743629435403,-164.14,0.00031277,2]
[357046436,1743629435413,-1689.91,0.00031436,2]
[357046437,1743629435422,-150.0,0.00031506,2]
[357046438,1743629435431,-1530.16,0.00031507,2]
[357046439,1743629435440,-151.0,0.00031507,7]
[357046440,1743629435450,-558.26567667,0.000318,2]
[357046441,1743629435459,-1010.35121187,0.00031895,4]
[357046442,1743629435469,-701.95844525,0.00032,2]
[357046443,1743629435478,-10856.24577494,0.00032088,2]
[357046444,1743629435487,-151.0,0.0003212,7]
[357046445,1743629435496,-151.0,0.0003212,7]
[357046446,1743629435506,-151.0,0.0003212,7]
[357046447,1743629435515,-161.826159,0.0003212,7]
[357046448,1743629435524,-150.0,0.00032183,2]
[357046449,1743629435533,-150.0,0.0003229,2]
[357046450,1743629435542,-150.0,0.00032318,2]
[357046451,1743629435551,-150.0,0.00032386,2]
[357046452,1743629435560,-244.20908259,0.00032437,2]
[357046453,1743629435569,-150.0,0.00032456,2]
[357046454,1743629435578,-150.0,0.00032558,2]
[357046455,1743629435587,-150.0,0.00032586,2]
[357046456,1743629435597,-150.0,0.00032619,2]
[357046457,1743629435606,-278.23,0.00032646,2]
[357046458,1743629435615,-273.21,0.00032646,2]
[357046459,1743629435624,-270.11693818,0.00032777,2]
[357046460,1743629435633,-150.0,0.00032844,2]
[357046461,1743629435642,-150.0,0.00032876,2]
[357046462,1743629435652,-329.95,0.00032877,2]
[357046463,1743629435665,-1530.16,0.00032877,2]
[357046464,1743629435674,-151.0,0.00032877,7]
[357046465,1743629435683,-151.0,0.00032877,7]
[357046466,1743629435692,-150.0,0.0003289,2]
[357046467,1743629435703,-150.0,0.00032896,2]
[357046468,1743629435713,-349.0,0.000329,2]
[357046469,1743629435725,-150.0,0.00032926,2]
[357046470,1743629435738,-157.13,0.00032932,120]
[357046471,1743629435749,-150.0,0.00032984,2]
[357046472,1743629435760,-156.99764985,0.00033,120]
[357046473,1743629435770,-400.0,0.00033,2]
[357046474,1743629435779,-150.0,0.00033077,2]
[357046475,1743629435788,-158.73903252,0.00033114,2]
[357046476,1743629435798,-150.0,0.00033116,2]
[357046477,1743629435812,-150.0,0.00033143,2]
[357046478,1743629435822,-200.0,0.00033151,2]
[357046479,1743629435832,-1000.0,0.00033209,2]
[357046480,1743629435841,-151.0,0.00033209,7]
[357046481,1743629435854,-150.0,0.00033262,2]
[357046482,1743629435864,-1164.07277116,0.000335,2]
[357046483,1743629435873,-151.0,0.000335,7]
[357046484,1743629435883,-151.0,0.000335,7]
[357046485,1743629435893,-2000.0,0.000335,2]
[357046486,1743629435902,-626.278734,0.000335,7]
[357046487,1743629435913,-626.278734,0.000335,7]
[357046488,1743629435924,-151.0,0.00033511,7]
[357046489,1743629435935,-169.485123,0.00033511,7]
[357046490,1743629435944,-169.485123,0.00033511,7]
[357046491,1743629435953,-2112.353602,0.00033511,7]
[357046492,1743629435963,-2112.353602,0.00033511,7]
[357046493,1743629435972,-8456.28255034,0.00033511,2]
[357046494,1743629435981,-3483.55118777,0.00033511,2]
[357046495,1743629435990,-150.0,0.00033538,2]
[357046496,1743629436001,-150.0,0.00033545,2]
[357046497,1743629436011,-150.0,0.00033572,2]
[357046498,1743629436020,-1500.0,0.00033671,5]
[357046499,1743629436029,-1689.91,0.000337,2]
[357046500,1743629436038,-150.0,0.00033715,2]
[357046501,1743629436047,-150.0,0.00033733,2]
[357046502,1743629436056,-150.0,0.00033919,2]
[357046503,1743629436066,-151.0,0.00033919,7]
[357046504,1743629436075,-151.0,0.00033919,7]
[357046505,1743629436085,-150.0,0.00033923,2]
[357046506,1743629436095,-150.0,0.00034052,2]
[357046507,1743629436104,-150.0,0.0003419,2]
[357046508,1743629436114,-150.0,0.00034246,2]
[357046509,1743629436123,-150.0,0.00034289,2]
[357046510,1743629436133,-153.95816816,0.0003431,2]
[357046511,1743629436143,-150.0,0.00034311,2]
[357046512,1743629436152,-152.48074373,0.00034344,2]
[357046513,1743629436162,-150.0,0.0003442,2]
[357046514,1743629436172,-234.25972647,0.00034436,2]
[357046515,1743629436181,-150.0,0.00034444,2]
[357046516,1743629436192,-150.0,0.00034447,2]
[357046517,1743629436201,-150.0,0.00034449,2]
[357046518,1743629436210,-150.0,0.0003445,2]
[357046519,1743629436219,-694.59928484,0.00034465,2]
[357046520,1743629436228,-221.07183657,0.0003447,2]
[357046521,1743629436238,-150.0,0.00034481,2]
[357046522,1743629436247,-150.0,0.0003452,2]
[357046523,1743629436256,-150.0,0.00034528,2]
[357046524,1743629436265,-150.0,0.00034539,2]
[357046525,1743629436275,-150.0,0.00034556,2]
[357046526,1743629436284,-150.0,0.00034572,2]
[357046527,1743629436293,-150.0,0.00034594,2]
[357046528,1743629436302,-150.0,0.00034596,2]
[357046529,1743629436312,-150.0,0.00034598,2]
[357046530,1743629436322,-190.33,0.000346,120]
[357046531,1743629436331,-217.71290439,0.000346,2]
[357046532,1743629436341,-236.0020904,0.000346,2]
[357046533,1743629436350,-190.40325232,0.000346,2]
[357046534,1743629436361,-200.21735658,0.000346,2]
[357046535,1743629436371,-151.53,0.00034633,2]
[357046536,1743629436381,-150.0,0.00034643,2]
[357046537,1743629436390,-151.0,0.00034643,7]
[357046538,1743629436400,-152.77024,0.00034643,7]
[357046539,1743629436410,-777.232824,0.00034643,7]
[357046540,1743629436420,-777.232824,0.00034643,7]
[357046541,1743629436429,-151.0,0.00034643,7]
[357046542,1743629436439,-151.0,0.00034643,7]
[357046543,1743629436448,-151.0,0.00034643,7]
[357046544,1743629436458,-151.0,0.00034643,7]
[357046545,1743629436468,-151.0,0.00034643,7]
[357046546,1743629436477,-150.0,0.00034643,2]
[357046547,1743629436488,-2337.41844428,0.00034643,2]
[357046548,1743629436498,-12206.6,0.00034643,2]
[357046549,1743629436507,-2000.0,0.00034643,7]
[357046550,1743629436516,-5376.69774694,0.00034643,2]
[357046551,1743629436526,-2621.53802004,0.00034643,2]
[357046552,1743629436535,-1896.20513339,0.00034643,2]
[357046553,1743629436545,-3279.1944112,0.00034643,2]
[357046554,1743629436554,-176.15257704,0.00034643,2]
[357046555,1743629436564,-3395.30125426,0.00034643,7]
[357046556,1743629436575,-3191.85207367,0.00034643,2]
[357046557,1743629436585,-1029.50400429,0.00034643,7]
[357046558,1743629436667,-461.67862877,0.00034643,7]
[357046559,1743629436677,-5036.88291378,0.00034643,7]
[357046560,1743629436688,-2003.45498394,0.00034643,2]
[357046561,1743629436699,-1489.06351071,0.00034643,7]
[357046562,1743629436708,-10014.60565894,0.00034643,2]
[357046563,1743629436717,-150.0,0.00034643,2]
[357046564,1743629436727,-1000.0,0.00034645,2]
[357046565,1743629436736,-300.0,0.00034645,2]
[357046566,1743629436746,-551.44330272,0.00034645,2]
[357046567,1743629436755,-151.0,0.00034646,7]
[357046568,1743629436765,-200.5,0.00034646,30]
[357046569,1743629436774,-200.0,0.00034646,2]
[357046570,1743629436783,-200.0,0.00034647,2]
[357046571,1743629436792,-2000.0,0.00034647,2]
[357046572,1743629436801,-200.0,0.00034647,2]
[357046573,1743629436811,-200.0,0.00034647,2]
[357046574,1743629436820,-201.1619028,0.00034663,7]
[357046575,1743629436830,-169.17420686,0.00034663,7]
[357046576,1743629436839,-151.53,0.00034668,2]
[357046577,1743629436849,-151.53,0.00034668,2]
[357046578,1743629436858,-152.52375466,0.00034668,2]
[357046579,1743629436867,-2020.0,0.0003467,30]
[357046580,1743629436876,-151.0,0.00034678,7]
[357046581,1743629436886,-151.0,0.00034678,7]
[357046582,1743629436895,-151.0,0.00034678,7]
[357046583,1743629436904,-626.278734,0.00034678,7]
[357046584,1743629436913,-626.278734,0.00034678,7]
[357046585,1743629436922,-151.0,0.00034678,7]
[357046586,1743629436932,-151.0,0.00034678,7]
[357046587,1743629436941,-151.0,0.00034678,7]
[357046588,1743629436951,-151.0,0.00034678,7]
[357046589,1743629436960,-151.0,0.00034678,7]
[357046590,1743629436969,-151.0,0.00034678,7]
[357046591,1743629436978,-151.0,0.00034678,7]
[357046592,1743629436988,-777.232824,0.00034678,7]
[357046593,1743629436997,-777.232824,0.00034678,7]
[357046594,1743629437006,-151.0,0.00034678,7]
[357046595,1743629437015,-151.0,0.00034678,7]
[357046596,1743629437025,-151.0,0.00034678,7]
[357046597,1743629437034,-151.0,0.00034678,7]
[357046598,1743629437043,-151.0,0.00034678,7]
[357046599,1743629437053,-151.0,0.00034678,7]
[357046600,1743629437062,-169.485123,0.00034678,7]
[357046601,1743629437071,-151.0,0.00034678,7]
[357046602,1743629437081,-169.485123,0.00034678,7]
[357046603,1743629437090,-2112.353602,0.00034678,7]
[357046604,1743629437101,-2112.353602,0.00034678,7]
[357046605,1743629437111,-481622.78636708,0.00034678,30]
[357046606,1743629437121,-179.2498365,0.000347,2]
[357046607,1743629437131,-3445.83364792,0.000348,2]
[357046608,1743629437141,-2041.0,0.0003494,2]
[357046609,1743629437150,-308.643,0.0003494,2]
[357046610,1743629437161,-643.0,0.0003494,2]
[357046611,1743629437171,-200.0,0.00034992,2]
[357046612,1743629437181,-200.0,0.00034993,2]
[357046613,1743629437191,-200.0,0.00034993,2]
[357046614,1743629437201,-858.0,0.00035,40]
[357046615,1743629437211,-169.04,0.00035,2]
[357046616,1743629437221,-153.44608311,0.00035,120]
[357046617,1743629437231,-3140.30443063,0.00035,2]
[357046618,1743629437241,-1030.54649725,0.00035,4]
[357046619,1743629437251,-150.43230708,0.00035,30]
[357046620,1743629437260,-450.0,0.00035,2]
[357046621,1743629437271,-286.1726034,0.00035,4]
[357046622,1743629437280,-465.47,0.00035068,2]
[357046623,1743629437290,-214.75,0.000351,2]
[357046624,1743629437300,-200.0,0.00035343,2]
[357046626,1743629437309,-200.0,0.00035343,2]
[357046627,1743629437319,-156.70859779,0.00035616,2]
[357046628,1743629437328,-150.0,0.00035616,2]
[357046629,1743629437337,-200.0,0.00035697,2]
[357046630,1743629437346,-200.0,0.00035697,2]
[357046631,1743629437355,-1689.91,0.00035964,2]
[357046632,1743629437365,-17750.92633532,0.00036,7]
[357046633,1743629437374,-200.0,0.00036054,2]
[357046634,1743629437383,-200.0,0.00036054,2]
[357046635,1743629437391,-2000.0,0.000362,2]
[357046636,1743629437400,-150.0,0.00036554,2]
[357046637,1743629437409,-2029.87460525,0.000366,2]
[357046638,1743629437418,-500.0,0.00037,2]
[357046639,1743629437428,-8456.28255034,0.00037233,2]
[357046640,1743629437437,-3483.55118777,0.00037233,2]
[357046641,1743629437447,-150.0,0.00037491,2]
[357046642,1743629437457,-219.25895212,0.00037493,30]
[357046643,1743629437466,-157.13,0.00037858,120]
[357046644,1743629437476,-152.41,0.00037863,2]
[357046645,1743629437485,-2041.0,0.0003794,2]
[357046646,1743629437495,-643.0,0.0003794,2]
[357046647,1743629437505,-1689.91,0.00038228,2]
[357046648,1743629437515,-244.20908259,0.00038258,2]
[357046649,1743629437524,-1422.0,0.00038299,2]
[357046650,1743629437533,-573.0,0.00038299,2]
[357046651,1743629437543,-789.0,0.00038299,2]
[357046652,1743629437552,-1275.0,0.00038299,2]
[357046653,1743629437561,-909.0,0.00038299,2]
[357046654,1743629437574,-543.0,0.00038299,2]
[357046655,1743629437583,-1434.0,0.00038299,2]
[357046656,1743629437593,-4094.0,0.00038299,2]
[357046657,1743629437602,-1118.0,0.00038299,2]
[357046658,1743629437611,-349.22721018,0.000384,2]
[357046659,1743629437621,-150.0,0.00038428,2]
[357046660,1743629437630,-278.23,0.00038443,2]
[357046661,1743629437639,-273.21,0.00038443,2]
[357046662,1743629437649,-302.187,0.00038525,52]
[357046663,1743629437661,-2000.0,0.00039,2]
[357046664,1743629437671,-550.0,0.00039,2]
[357046665,1743629437680,-150.0,0.00039366,2]
[357046666,1743629437691,-440.6,0.00039675,2]
[357046667,1743629437700,-783.54,0.00039675,2]
[357046668,1743629437710,-783.54,0.00039675,2]
[357046669,1743629437719,-783.54,0.00039675,2]
[357046670,1743629437730,-783.54,0.00039675,2]
[357046671,1743629437739,-150.0,0.0004,2]
[357046672,1743629437749,-3854.3449385,0.0004,3]
[357046673,1743629437758,-152.08429418,0.0004,2]
[357046674,1743629437767,-150.0,0.00040303,2]
[357046675,1743629437777,-1689.91,0.00040492,2]
[357046676,1743629437786,-1996.74,0.00040754,2]
[357046677,1743629437796,-2041.0,0.0004094,2]
[357046678,1743629437806,-643.0,0.0004094,2]
[357046679,1743629437816,-8456.28255034,0.00040956,15]
[357046680,1743629437826,-3483.55118777,0.00040956,15]
[357046681,1743629437906,-180.0,0.00041,14]
[357046682,1743629437916,-600.0,0.00041,2]
[357046683,1743629437926,-1000.0,0.00041095,120]
[357046684,1743629437938,-260.21088572,0.00041095,120]
[357046685,1743629437947,-150.0,0.0004124,2]
[357046686,1743629437956,-1365.0,0.00041299,2]
[357046687,1743629437965,-573.0,0.00041299,2]
[357046688,1743629437975,-789.0,0.00041299,2]
[357046689,1743629437988,-1275.0,0.00041299,2]
[357046690,1743629438000,-909.0,0.00041299,2]
[357046691,1743629438009,-543.0,0.00041299,2]
[357046692,1743629438019,-1434.0,0.00041299,2]
[357046693,1743629438030,-2831.615,0.00041299,2]
[357046694,1743629438039,-775.756,0.00041299,2]
[357046695,1743629438048,-2000.0,0.000417,2]
[357046696,1743629438057,-241.931,0.00041789,2]
[357046697,1743629438067,-230.241,0.00041789,2]
[357046699,1743629438075,-150.76,0.00042,120]
[357046701,1743629438085,-184.38,0.00042,120]
[357046703,1743629438094,-150.0,0.00042177,2]
[357046704,1743629438103,-236.00209038,0.0004225,2]
[357046706,1743629438113,-190.40325232,0.0004225,2]
[357046708,1743629438122,-150.0,0.00042562,2]
[357046710,1743629438131,-919.5815413,0.00042679,4]
[357046712,1743629438141,-1689.91,0.00042755,2]
[357046714,1743629438150,-157.13,0.00042784,120]
[357046715,1743629438159,-370.0,0.00043,30]
[357046716,1743629438168,-298.0,0.00043,30]
[357046717,1743629438178,-234.0,0.00043,30]
[357046718,1743629438187,-3761.32085718,0.00043,30]
[357046719,1743629438196,-986.8,0.00043,30]
[357046720,1743629438205,-650.0,0.00043,2]
[357046721,1743629438214,-150.0,0.00043115,2]
[357046722,1743629438223,-150.0,0.00043133,2]
[357046723,1743629438232,-181.0,0.00043151,90]
[357046724,1743629438240,-3305.11702899,0.0004321,120]
[357046725,1743629438249,-150.0,0.0004344,2]
[357046726,1743629438258,-998.20939501,0.00043445,10]
[357046727,1743629438267,-2628.88471218,0.00043648,2]
[357046728,1743629438277,-1666.78049476,0.000437,120]
[357046729,1743629438286,-643.0,0.0004394,2]
[357046730,1743629438295,-21923.5843935,0.00044,3]
[357046731,1743629438304,-1380.65598438,0.00044,30]
[357046732,1743629438313,-151.0,0.00044,14]
[357046733,1743629438322,-151.0,0.00044,14]
[357046734,1743629438331,-300.0,0.00044,10]
[357046735,1743629438341,-150.00478414,0.00044,60]
[357046736,1743629438350,-150.0,0.00044052,2]
[357046737,1743629438359,-244.20908259,0.00044079,14]
[357046738,1743629438368,-278.23,0.00044239,2]
[357046739,1743629438377,-273.21,0.00044239,2]
[357046740,1743629438386,-1365.0,0.00044299,2]
[357046741,1743629438395,-573.0,0.00044299,2]
[357046742,1743629438404,-476.596,0.00044299,2]
[357046743,1743629438413,-1274.0,0.00044299,2]
[357046744,1743629438422,-905.0,0.00044299,2]
[357046745,1743629438431,-541.0,0.00044299,2]
[357046746,1743629438441,-1430.0,0.00044299,2]
[357046747,1743629438452,-2000.0,0.000444,2]
[357046748,1743629438461,-8456.28255034,0.00044678,15]
[357046749,1743629438472,-3483.55118777,0.00044678,15]
[357046750,1743629438482,-151.0,0.00044678,14]
[357046751,1743629438491,-626.278734,0.00044678,14]
[357046752,1743629438500,-626.278734,0.00044678,14]
[357046753,1743629438509,-151.0,0.00044678,14]
[357046754,1743629438518,-151.0,0.00044678,14]
[357046755,1743629438528,-151.0,0.00044678,14]
[357046756,1743629438537,-151.0,0.00044678,14]
[357046757,1743629438546,-151.0,0.00044678,14]
[357046758,1743629438555,-169.485123,0.00044678,14]
[357046759,1743629438565,-169.485123,0.00044678,14]
[357046760,1743629438574,-2112.353602,0.00044678,14]
[357046761,1743629438583,-2112.353602,0.00044678,14]
[357046762,1743629438592,-500.0,0.00044685,2]
[357046763,1743629438601,-151.0,0.00044685,14]
[357046764,1743629438610,-151.0,0.00044685,14]
[357046765,1743629438620,-209.0,0.0004471,30]
[357046766,1743629438629,-696.84353179,0.000448,120]
[357046767,1743629438639,-182.76483898,0.00044986,120]
[357046768,1743629438650,-150.0,0.00044989,2]
[357046769,1743629438661,-151.0,0.00045,120]
[357046770,1743629438671,-150.0,0.00045,85]
[357046771,1743629438679,-45459.53469534,0.00045,7]
[357046772,1743629438689,-151.0,0.00045,14]
[357046773,1743629438700,-777.232824,0.00045,14]
[357046774,1743629438709,-777.232824,0.00045,14]
[357046775,1743629438718,-151.0,0.00045,14]
[357046776,1743629438727,-286.519975,0.00045,14]
[357046777,1743629438739,-151.0,0.00045,14]
[357046778,1743629438749,-151.0,0.00045,14]
[357046779,1743629438758,-151.0,0.00045,14]
[357046780,1743629438767,-2860.22369759,0.00045,120]
[357046781,1743629438776,-700.0,0.00045,2]
[357046782,1743629438786,-1689.91,0.00045019,2]
[357046783,1743629438795,-151.29031513,0.00045384,14]
[357046784,1743629438804,-300.0,0.000455,7]
[357046785,1743629438814,-300.0,0.000455,7]
[357046786,1743629438824,-300.0,0.000455,7]
[357046787,1743629438834,-593.72268095,0.000455,7]
[357046788,1743629438843,-1065.0,0.00045653,30]
[357046789,1743629438853,-150.0,0.00045927,2]
[357046790,1743629438862,-30250.69578539,0.00046,120]
[357046791,1743629438871,-500.0,0.00046,120]
[357046792,1743629438881,-500.0,0.00046,120]
[357046793,1743629438891,-500.0,0.00046,120]
[357046794,1743629438900,-500.0,0.00046,120]
[357046795,1743629438909,-500.0,0.00046,120]
[357046796,1743629438919,-500.0,0.00046,120]
[357046797,1743629438928,-500.0,0.00046,120]
[357046798,1743629438937,-500.0,0.00046,120]
[357046799,1743629438947,-500.0,0.00046,120]
[357046800,1743629438959,-209.0,0.0004614,30]
[357046801,1743629438969,-465.47,0.00046301,2]
[357046802,1743629439048,-1353.01708365,0.0004647,3]
[357046803,1743629439058,-1000.0,0.000465,6]
[357046804,1743629439067,-730.41049071,0.000465,120]
[357046805,1743629439076,-1423.0,0.000465,80]
[357046806,1743629439085,-500.0,0.000465,120]
[357046807,1743629439095,-500.0,0.000465,120]
[357046808,1743629439104,-500.0,0.000465,120]
[357046809,1743629439114,-500.0,0.000465,120]
[357046810,1743629439123,-500.0,0.000465,120]
[357046811,1743629439132,-500.0,0.000465,120]
[357046812,1743629439141,-500.0,0.000465,120]
[357046813,1743629439150,-500.0,0.000465,120]
[357046814,1743629439159,-500.0,0.000465,120]
[357046815,1743629439168,-500.0,0.000465,120]
[357046816,1743629439177,-500.0,0.000465,120]
[357046817,1743629439186,-500.0,0.000465,120]
[357046818,1743629439195,-500.0,0.000465,120]
[357046819,1743629439204,-500.0,0.000465,120]
[357046820,1743629439214,-500.0,0.000465,120]
[357046821,1743629439223,-500.0,0.000465,120]
[357046822,1743629439232,-807.0,0.000465,120]
[357046823,1743629439241,-1000.0,0.00046575,120]
[357046824,1743629439250,-2000.0,0.00046645,10]
[357046825,1743629439259,-1000.0,0.00046849,120]
[357046826,1743629439268,-150.0,0.00046864,2]
[357046827,1743629439278,-495.067,0.0004694,2]
[357046828,1743629439288,-750.0,0.00047,2]
[357046829,1743629439297,-500.0,0.0004718,120]
[357046830,1743629439307,-500.0,0.0004718,120]
[357046831,1743629439316,-500.0,0.0004718,120]
[357046832,1743629439325,-500.0,0.0004718,120]
[357046833,1743629439334,-500.0,0.0004718,120]
[357046834,1743629439343,-500.0,0.0004718,120]
[357046835,1743629439353,-500.0,0.0004718,120]
[357046836,1743629439362,-500.0,0.0004718,120]
[357046837,1743629439372,-500.0,0.0004718,120]
[357046838,1743629439381,-192.41,0.0004718,120]
[357046839,1743629439391,-302.77,0.0004718,120]
[357046840,1743629439400,-500.0,0.0004718,120]
[357046841,1743629439409,-504.67,0.0004718,120]
[357046842,1743629439418,-294.31,0.0004718,120]
[357046843,1743629439428,-2000.0,0.000472,2]
[357046844,1743629439437,-1689.91,0.00047283,2]
[357046846,1743629439446,-1365.0,0.00047299,2]
[357046847,1743629439455,-425.268,0.00047299,2]
[357046848,1743629439464,-500.0,0.000474,60]
[357046849,1743629439474,-500.0,0.000474,60]
[357046850,1743629439483,-776.0,0.000474,60]
[357046851,1743629439492,-807.0,0.000474,60]
[357046852,1743629439502,-500.0,0.000474,60]
[357046853,1743629439511,-150.0,0.000474,60]
[357046854,1743629439521,-150.0,0.000474,60]
[357046855,1743629439531,-1959.0,0.000474,60]
[357046856,1743629439540,-500.0,0.000474,60]
[357046857,1743629439549,-500.0,0.000474,60]
[357046858,1743629439558,-273.52828458,0.000474,60]
[357046859,1743629439568,-150.0,0.000474,60]
[357046860,1743629439577,-500.0,0.00047427,60]
[357046861,1743629439587,-500.0,0.00047427,60]
[357046862,1743629439596,-776.0,0.00047427,60]
[357046864,1743629439605,-807.0,0.00047427,60]
[357046866,1743629439615,-500.0,0.00047427,60]
[357046868,1743629439624,-150.0,0.00047427,60]
[357046869,1743629439634,-150.0,0.00047427,60]
[357046870,1743629439643,-1959.0,0.00047427,60]
[357046871,1743629439655,-500.0,0.00047427,60]
[357046872,1743629439665,-500.0,0.00047427,60]
[357046873,1743629439674,-150.0,0.00047427,60]